Workbook

Sheet Prihodi (prodaja)
B1: Dvanaest meseci | AD1: Ime preduzeća
B2: PROJEKCIJA PROFITA I GUBITKA | AB2: FISKALNA GODINA POČINJE: | AC2: JAN | AD2: =YEAR(TODAY()) -> 2017
D3: =UPPER(TEXT(DATE(FYStartYear,FYMonthNo,1),"mmm-yy")) -> JAN-17 | E3: =UPPER(TEXT(DATE(FYStartYear,FYMonthNo+1,1),"mmm-yy")) -> FEB-17 | F3: =UPPER(TEXT(DATE(FYStartYear,FYMonthNo+2,1),"mmm-yy")) -> MART-17 | G3: =UPPER(TEXT(DATE(FYStartYear,FYMonthNo+3,1),"mmm-yy")) -> APR-17 | H3: =UPPER(TEXT(DATE(FYStartYear,FYMonthNo+4,1),"mmm-yy")) -> MAJ-17 | I3: =UPPER(TEXT(DATE(FYStartYear,FYMonthNo+5,1),"mmm-yy")) -> JUN-17 | J3: =UPPER(TEXT(DATE(FYStartYear,FYMonthNo+6,1),"mmm-yy")) -> JUL-17 | K3: =UPPER(TEXT(DATE(FYStartYear,FYMonthNo+7,1),"mmm-yy")) -> AVG-17 | L3: =UPPER(TEXT(DATE(FYStartYear,FYMonthNo+8,1),"mmm-yy")) -> SEPT-17 | M3: =UPPER(TEXT(DATE(FYStartYear,FYMonthNo+9,1),"mmm-yy")) -> OKT-17 | N3: =UPPER(TEXT(DATE(FYStartYear,FYMonthNo+10,1),"mmm-yy")) -> NOV-17 | O3: =UPPER(TEXT(DATE(FYStartYear,FYMonthNo+11,1),"mmm-yy")) -> DEC-17 | P3: GODIŠNJE | Q3: IND % | R3: =LEFT(D3,3)&" %" -> JAN % | S3: =LEFT(E3,3)&" %" -> FEB % | T3: MAR % | U3: APR % | V3: MAJ % | W3: JUN % | X3: JUL % | Y3: AVG % | Z3: SEP % | AA3: OKT % | AB3: NOV % | AC3: DEC % | AD3: GODINA %
B4: PRIHODI (PRODAJA) | C4: TREND | D4: Jan | E4: Feb | F4: Mart | G4: Apr | H4: Maj | I4: Jun | J4: Jul | K4: Avg | L4: Sept | M4: Okt | N4: Nov | O4: Dec | P4: Godišnje | Q4: Indeks % | R4: Jan % | S4: Feb % | T4: Mar % | U4: Apr % | V4: Maj % | W4: Jun % | X4: Jul % | Y4: Avg % | Z4: Sep % | AA4: Okt % | AB4: Nov % | AC4: Dec % | AD4: Godina %
B5: Prihod 1 | D5: 186 RSD | E5: 108 RSD | F5: 92 RSD | G5: 122 RSD | H5: 190 RSD | I5: 71 RSD | J5: 21 RSD | K5: 37 RSD | L5: 24 RSD | M5: 178 RSD | N5: 92 RSD | O5: 97 RSD | P5: =SUM(Prihod[[#This Row],[Jan]:[Dec]]) -> 1,218 RSD | Q5: 12% | R5: =IFERROR(Prihod[[#This Row],[Jan]]/Prihod[[#Totals],[Jan]],"-") -> 30% | S5: =IFERROR(Prihod[[#This Row],[Feb]]/Prihod[[#Totals],[Feb]],"-") -> 15% | T5: =IFERROR(Prihod[[#This Row],[Mart]]/Prihod[[#Totals],[Mart]],"-") -> 11% | U5: =IFERROR(Prihod[[#This Row],[Apr]]/Prihod[[#Totals],[Apr]],"-") -> 20% | V5: =IFERROR(Prihod[[#This Row],[Maj]]/Prihod[[#Totals],[Maj]],"-") -> 23% | W5: =IFERROR(Prihod[[#This Row],[Jun]]/Prihod[[#Totals],[Jun]],"-") -> 12% | X5: =IFERROR(Prihod[[#This Row],[Jul]]/Prihod[[#Totals],[Jul]],"-") -> 4% | Y5: =IFERROR(Prihod[[#This Row],[Avg]]/Prihod[[#Totals],[Avg]],"-") -> 5% | Z5: =IFERROR(Prihod[[#This Row],[Sept]]/Prihod[[#Totals],[Sept]],"-") -> 3% | AA5: =IFERROR(Prihod[[#This Row],[Okt]]/Prihod[[#Totals],[Okt]],"-") -> 26% | AB5: =IFERROR(Prihod[[#This Row],[Nov]]/Prihod[[#Totals],[Nov]],"-") -> 12% | AC5: =IFERROR(Prihod[[#This Row],[Dec]]/Prihod[[#Totals],[Dec]],"-") -> 9% | AD5: =IFERROR(Prihod[[#This Row],[Godišnje]]/Prihod[[#Totals],[Godišnje]],"-") -> 14%
B6: Prihod 2 | D6: 15 RSD | E6: 16 RSD | F6: 198 RSD | G6: 44 RSD | H6: 25 RSD | I6: 68 RSD | J6: 43 RSD | K6: 119 RSD | L6: 37 RSD | M6: 118 RSD | N6: 29 RSD | O6: 171 RSD | P6: =SUM(Prihod[[#This Row],[Jan]:[Dec]]) -> 883 RSD | Q6: 18% | R6: =IFERROR(Prihod[[#This Row],[Jan]]/Prihod[[#Totals],[Jan]],"-") -> 2% | S6: =IFERROR(Prihod[[#This Row],[Feb]]/Prihod[[#Totals],[Feb]],"-") -> 2% | T6: =IFERROR(Prihod[[#This Row],[Mart]]/Prihod[[#Totals],[Mart]],"-") -> 24% | U6: =IFERROR(Prihod[[#This Row],[Apr]]/Prihod[[#Totals],[Apr]],"-") -> 7% | V6: =IFERROR(Prihod[[#This Row],[Maj]]/Prihod[[#Totals],[Maj]],"-") -> 3% | W6: =IFERROR(Prihod[[#This Row],[Jun]]/Prihod[[#Totals],[Jun]],"-") -> 12% | X6: =IFERROR(Prihod[[#This Row],[Jul]]/Prihod[[#Totals],[Jul]],"-") -> 7% | Y6: =IFERROR(Prihod[[#This Row],[Avg]]/Prihod[[#Totals],[Avg]],"-") -> 18% | Z6: =IFERROR(Prihod[[#This Row],[Sept]]/Prihod[[#Totals],[Sept]],"-") -> 5% | AA6: =IFERROR(Prihod[[#This Row],[Okt]]/Prihod[[#Totals],[Okt]],"-") -> 17% | AB6: =IFERROR(Prihod[[#This Row],[Nov]]/Prihod[[#Totals],[Nov]],"-") -> 4% | AC6: =IFERROR(Prihod[[#This Row],[Dec]]/Prihod[[#Totals],[Dec]],"-") -> 16% | AD6: =IFERROR(Prihod[[#This Row],[Godišnje]]/Prihod[[#Totals],[Godišnje]],"-") -> 10%
B7: Prihod 3 | D7: 166 RSD | E7: 185 RSD | F7: 89 RSD | G7: 170 RSD | H7: 131 RSD | I7: 70 RSD | J7: 50 RSD | K7: 149 RSD | L7: 179 RSD | M7: 104 RSD | N7: 119 RSD | O7: 187 RSD | P7: =SUM(Prihod[[#This Row],[Jan]:[Dec]]) -> 1,599 RSD | Q7: 19% | R7: =IFERROR(Prihod[[#This Row],[Jan]]/Prihod[[#Totals],[Jan]],"-") -> 27% | S7: =IFERROR(Prihod[[#This Row],[Feb]]/Prihod[[#Totals],[Feb]],"-") -> 25% | T7: =IFERROR(Prihod[[#This Row],[Mart]]/Prihod[[#Totals],[Mart]],"-") -> 11% | U7: =IFERROR(Prihod[[#This Row],[Apr]]/Prihod[[#Totals],[Apr]],"-") -> 28% | V7: =IFERROR(Prihod[[#This Row],[Maj]]/Prihod[[#Totals],[Maj]],"-") -> 16% | W7: =IFERROR(Prihod[[#This Row],[Jun]]/Prihod[[#Totals],[Jun]],"-") -> 12% | X7: =IFERROR(Prihod[[#This Row],[Jul]]/Prihod[[#Totals],[Jul]],"-") -> 8% | Y7: =IFERROR(Prihod[[#This Row],[Avg]]/Prihod[[#Totals],[Avg]],"-") -> 22% | Z7: =IFERROR(Prihod[[#This Row],[Sept]]/Prihod[[#Totals],[Sept]],"-") -> 24% | AA7: =IFERROR(Prihod[[#This Row],[Okt]]/Prihod[[#Totals],[Okt]],"-") -> 15% | AB7: =IFERROR(Prihod[[#This Row],[Nov]]/Prihod[[#Totals],[Nov]],"-") -> 16% | AC7: =IFERROR(Prihod[[#This Row],[Dec]]/Prihod[[#Totals],[Dec]],"-") -> 18% | AD7: =IFERROR(Prihod[[#This Row],[Godišnje]]/Prihod[[#Totals],[Godišnje]],"-") -> 18%
B8: Prihod 4 | D8: 21 RSD | E8: 113 RSD | F8: 83 RSD | G8: 17 RSD | H8: 130 RSD | I8: 26 RSD | J8: 167 RSD | K8: 102 RSD | L8: 82 RSD | M8: 33 RSD | N8: 88 RSD | O8: 193 RSD | P8: =SUM(Prihod[[#This Row],[Jan]:[Dec]]) -> 1,055 RSD | Q8: 11% | R8: =IFERROR(Prihod[[#This Row],[Jan]]/Prihod[[#Totals],[Jan]],"-") -> 3% | S8: =IFERROR(Prihod[[#This Row],[Feb]]/Prihod[[#Totals],[Feb]],"-") -> 15% | T8: =IFERROR(Prihod[[#This Row],[Mart]]/Prihod[[#Totals],[Mart]],"-") -> 10% | U8: =IFERROR(Prihod[[#This Row],[Apr]]/Prihod[[#Totals],[Apr]],"-") -> 3% | V8: =IFERROR(Prihod[[#This Row],[Maj]]/Prihod[[#Totals],[Maj]],"-") -> 16% | W8: =IFERROR(Prihod[[#This Row],[Jun]]/Prihod[[#Totals],[Jun]],"-") -> 4% | X8: =IFERROR(Prihod[[#This Row],[Jul]]/Prihod[[#Totals],[Jul]],"-") -> 28% | Y8: =IFERROR(Prihod[[#This Row],[Avg]]/Prihod[[#Totals],[Avg]],"-") -> 15% | Z8: =IFERROR(Prihod[[#This Row],[Sept]]/Prihod[[#Totals],[Sept]],"-") -> 11% | AA8: =IFERROR(Prihod[[#This Row],[Okt]]/Prihod[[#Totals],[Okt]],"-") -> 5% | AB8: =IFERROR(Prihod[[#This Row],[Nov]]/Prihod[[#Totals],[Nov]],"-") -> 12% | AC8: =IFERROR(Prihod[[#This Row],[Dec]]/Prihod[[#Totals],[Dec]],"-") -> 19% | AD8: =IFERROR(Prihod[[#This Row],[Godišnje]]/Prihod[[#Totals],[Godišnje]],"-") -> 12%
B9: Prihod 5 | D9: 70 RSD | E9: 160 RSD | F9: 125 RSD | G9: 84 RSD | H9: 191 RSD | I9: 97 RSD | J9: 52 RSD | K9: 45 RSD | L9: 173 RSD | M9: 136 RSD | N9: 144 RSD | O9: 167 RSD | P9: =SUM(Prihod[[#This Row],[Jan]:[Dec]]) -> 1,444 RSD | Q9: 20% | R9: =IFERROR(Prihod[[#This Row],[Jan]]/Prihod[[#Totals],[Jan]],"-") -> 11% | S9: =IFERROR(Prihod[[#This Row],[Feb]]/Prihod[[#Totals],[Feb]],"-") -> 22% | T9: =IFERROR(Prihod[[#This Row],[Mart]]/Prihod[[#Totals],[Mart]],"-") -> 15% | U9: =IFERROR(Prihod[[#This Row],[Apr]]/Prihod[[#Totals],[Apr]],"-") -> 14% | V9: =IFERROR(Prihod[[#This Row],[Maj]]/Prihod[[#Totals],[Maj]],"-") -> 24% | W9: =IFERROR(Prihod[[#This Row],[Jun]]/Prihod[[#Totals],[Jun]],"-") -> 17% | X9: =IFERROR(Prihod[[#This Row],[Jul]]/Prihod[[#Totals],[Jul]],"-") -> 9% | Y9: =IFERROR(Prihod[[#This Row],[Avg]]/Prihod[[#Totals],[Avg]],"-") -> 7% | Z9: =IFERROR(Prihod[[#This Row],[Sept]]/Prihod[[#Totals],[Sept]],"-") -> 23% | AA9: =IFERROR(Prihod[[#This Row],[Okt]]/Prihod[[#Totals],[Okt]],"-") -> 20% | AB9: =IFERROR(Prihod[[#This Row],[Nov]]/Prihod[[#Totals],[Nov]],"-") -> 19% | AC9: =IFERROR(Prihod[[#This Row],[Dec]]/Prihod[[#Totals],[Dec]],"-") -> 16% | AD9: =IFERROR(Prihod[[#This Row],[Godišnje]]/Prihod[[#Totals],[Godišnje]],"-") -> 17%
B10: Prihod 6 | D10: 61 RSD | E10: 99 RSD | F10: 70 RSD | G10: 162 RSD | H10: 28 RSD | I10: 163 RSD | J10: 101 RSD | K10: 103 RSD | L10: 78 RSD | M10: 33 RSD | N10: 162 RSD | O10: 159 RSD | P10: =SUM(Prihod[[#This Row],[Jan]:[Dec]]) -> 1,219 RSD | Q10: 10% | R10: =IFERROR(Prihod[[#This Row],[Jan]]/Prihod[[#Totals],[Jan]],"-") -> 10% | S10: =IFERROR(Prihod[[#This Row],[Feb]]/Prihod[[#Totals],[Feb]],"-") -> 13% | T10: =IFERROR(Prihod[[#This Row],[Mart]]/Prihod[[#Totals],[Mart]],"-") -> 9% | U10: =IFERROR(Prihod[[#This Row],[Apr]]/Prihod[[#Totals],[Apr]],"-") -> 27% | V10: =IFERROR(Prihod[[#This Row],[Maj]]/Prihod[[#Totals],[Maj]],"-") -> 3% | W10: =IFERROR(Prihod[[#This Row],[Jun]]/Prihod[[#Totals],[Jun]],"-") -> 28% | X10: =IFERROR(Prihod[[#This Row],[Jul]]/Prihod[[#Totals],[Jul]],"-") -> 17% | Y10: =IFERROR(Prihod[[#This Row],[Avg]]/Prihod[[#Totals],[Avg]],"-") -> 15% | Z10: =IFERROR(Prihod[[#This Row],[Sept]]/Prihod[[#Totals],[Sept]],"-") -> 10% | AA10: =IFERROR(Prihod[[#This Row],[Okt]]/Prihod[[#Totals],[Okt]],"-") -> 5% | AB10: =IFERROR(Prihod[[#This Row],[Nov]]/Prihod[[#Totals],[Nov]],"-") -> 22% | AC10: =IFERROR(Prihod[[#This Row],[Dec]]/Prihod[[#Totals],[Dec]],"-") -> 15% | AD10: =IFERROR(Prihod[[#This Row],[Godišnje]]/Prihod[[#Totals],[Godišnje]],"-") -> 14%
B11: Prihod 7 | D11: 105 RSD | E11: 55 RSD | F11: 163 RSD | G11: 12 RSD | H11: 117 RSD | I11: 83 RSD | J11: 163 RSD | K11: 120 RSD | L11: 171 RSD | M11: 79 RSD | N11: 105 RSD | O11: 69 RSD | P11: =SUM(Prihod[[#This Row],[Jan]:[Dec]]) -> 1,242 RSD | Q11: 10% | R11: =IFERROR(Prihod[[#This Row],[Jan]]/Prihod[[#Totals],[Jan]],"-") -> 17% | S11: =IFERROR(Prihod[[#This Row],[Feb]]/Prihod[[#Totals],[Feb]],"-") -> 7% | T11: =IFERROR(Prihod[[#This Row],[Mart]]/Prihod[[#Totals],[Mart]],"-") -> 20% | U11: =IFERROR(Prihod[[#This Row],[Apr]]/Prihod[[#Totals],[Apr]],"-") -> 2% | V11: =IFERROR(Prihod[[#This Row],[Maj]]/Prihod[[#Totals],[Maj]],"-") -> 14% | W11: =IFERROR(Prihod[[#This Row],[Jun]]/Prihod[[#Totals],[Jun]],"-") -> 14% | X11: =IFERROR(Prihod[[#This Row],[Jul]]/Prihod[[#Totals],[Jul]],"-") -> 27% | Y11: =IFERROR(Prihod[[#This Row],[Avg]]/Prihod[[#Totals],[Avg]],"-") -> 18% | Z11: =IFERROR(Prihod[[#This Row],[Sept]]/Prihod[[#Totals],[Sept]],"-") -> 23% | AA11: =IFERROR(Prihod[[#This Row],[Okt]]/Prihod[[#Totals],[Okt]],"-") -> 12% | AB11: =IFERROR(Prihod[[#This Row],[Nov]]/Prihod[[#Totals],[Nov]],"-") -> 14% | AC11: =IFERROR(Prihod[[#This Row],[Dec]]/Prihod[[#Totals],[Dec]],"-") -> 7% | AD11: =IFERROR(Prihod[[#This Row],[Godišnje]]/Prihod[[#Totals],[Godišnje]],"-") -> 14%
B12: UKUPNA PRODAJA | D12: =SUBTOTAL(109,Prihod[Jan]) -> 624 RSD | E12: =SUBTOTAL(109,Prihod[Feb]) -> 736 RSD | F12: =SUBTOTAL(109,Prihod[Mart]) -> 820 RSD | G12: =SUBTOTAL(109,Prihod[Apr]) -> 611 RSD | H12: =SUBTOTAL(109,Prihod[Maj]) -> 812 RSD | I12: =SUBTOTAL(109,Prihod[Jun]) -> 578 RSD | J12: =SUBTOTAL(109,Prihod[Jul]) -> 597 RSD | K12: =SUBTOTAL(109,Prihod[Avg]) -> 675 RSD | L12: =SUBTOTAL(109,Prihod[Sept]) -> 744 RSD | M12: =SUBTOTAL(109,Prihod[Okt]) -> 681 RSD | N12: =SUBTOTAL(109,Prihod[Nov]) -> 739 RSD | O12: =SUBTOTAL(109,Prihod[Dec]) -> 1,043 RSD | P12: =SUBTOTAL(109,Prihod[Godišnje]) -> 8,660 RSD | Q12: =SUBTOTAL(109,Prihod[Indeks %]) -> 100% | R12: =SUBTOTAL(109,Prihod[Jan %]) -> 100% | S12: =SUBTOTAL(109,Prihod[Feb %]) -> 100% | T12: =SUBTOTAL(109,Prihod[Mar %]) -> 100% | U12: =SUBTOTAL(109,Prihod[Apr %]) -> 100% | V12: =SUBTOTAL(109,Prihod[Maj %]) -> 100% | W12: =SUBTOTAL(109,Prihod[Jun %]) -> 100% | X12: =SUBTOTAL(109,Prihod[Jul %]) -> 100% | Y12: =SUBTOTAL(109,Prihod[Avg %]) -> 100% | Z12: =SUBTOTAL(109,Prihod[Sep %]) -> 100% | AA12: =SUBTOTAL(109,Prihod[Okt %]) -> 100% | AB12: =SUBTOTAL(109,Prihod[Nov %]) -> 100% | AC12: =SUBTOTAL(109,Prihod[Dec %]) -> 100% | AD12: =SUBTOTAL(109,Prihod[Godina %]) -> 100%

Sheet Trošak prodaje
B1: =Naslov_perioda_projekcije -> Dvanaest meseci | AD1: =Ime_preduzeća -> Ime preduzeća
B2: =Wksht_Title -> PROJEKCIJA PROFITA I GUBITKA | AB2: FISKALNA GODINA: | AC2: =FYMonthStart -> JAN | AD2: =FYStartYear -> 2017
D3: =UPPER(TEXT(DATE(FYStartYear,FYMonthNo,1),"mmm-yy")) -> JAN-17 | E3: =UPPER(TEXT(DATE(FYStartYear,FYMonthNo+1,1),"mmm-yy")) -> FEB-17 | F3: =UPPER(TEXT(DATE(FYStartYear,FYMonthNo+2,1),"mmm-yy")) -> MART-17 | G3: =UPPER(TEXT(DATE(FYStartYear,FYMonthNo+3,1),"mmm-yy")) -> APR-17 | H3: =UPPER(TEXT(DATE(FYStartYear,FYMonthNo+4,1),"mmm-yy")) -> MAJ-17 | I3: =UPPER(TEXT(DATE(FYStartYear,FYMonthNo+5,1),"mmm-yy")) -> JUN-17 | J3: =UPPER(TEXT(DATE(FYStartYear,FYMonthNo+6,1),"mmm-yy")) -> JUL-17 | K3: =UPPER(TEXT(DATE(FYStartYear,FYMonthNo+7,1),"mmm-yy")) -> AVG-17 | L3: =UPPER(TEXT(DATE(FYStartYear,FYMonthNo+8,1),"mmm-yy")) -> SEPT-17 | M3: =UPPER(TEXT(DATE(FYStartYear,FYMonthNo+9,1),"mmm-yy")) -> OKT-17 | N3: =UPPER(TEXT(DATE(FYStartYear,FYMonthNo+10,1),"mmm-yy")) -> NOV-17 | O3: =UPPER(TEXT(DATE(FYStartYear,FYMonthNo+11,1),"mmm-yy")) -> DEC-17 | P3: GODIŠNJE | Q3: IND % | R3: =LEFT(D3,3)&" %" -> JAN % | S3: =LEFT(E3,3)&" %" -> FEB % | T3: MAR % | U3: APR % | V3: MAJ % | W3: JUN % | X3: JUL % | Y3: AVG % | Z3: SEP % | AA3: OKT % | AB3: NOV % | AC3: DEC % | AD3: GODINA %
B4: TROŠAK PRODAJE | C4: TREND | D4: Jan | E4: Feb | F4: Mart | G4: Apr | H4: Maj | I4: Jun | J4: Jul | K4: Avg | L4: Sep | M4: Okt | N4: Nov | O4: Dec | P4: Godišnje | Q4: Indeks % | R4: Jan % | S4: Feb % | T4: Mar % | U4: Apr % | V4: Maj % | W4: Jun % | X4: Jul % | Y4: Avg % | Z4: Sep % | AA4: Okt % | AB4: Nov % | AC4: Dec % | AD4: Godina %
B5: Trošak 1 | D5: 61 RSD | E5: 78 RSD | F5: 65 RSD | G5: 29 RSD | H5: 125 RSD | I5: 49 RSD | J5: 14 RSD | K5: 26 RSD | L5: 14 RSD | M5: 129 RSD | N5: 60 RSD | O5: 65 RSD | P5: =SUM(Trošak_prodaje[[#This Row],[Jan]:[Dec]]) -> 715 RSD | Q5: 12% | R5: =IFERROR(Trošak_prodaje[[#This Row],[Jan]]/Trošak_prodaje[[#Totals],[Jan]],"-") -> 23% | S5: =IFERROR(Trošak_prodaje[[#This Row],[Feb]]/Trošak_prodaje[[#Totals],[Feb]],"-") -> 22% | T5: =IFERROR(Trošak_prodaje[[#This Row],[Mart]]/Trošak_prodaje[[#Totals],[Mart]],"-") -> 21% | U5: =IFERROR(Trošak_prodaje[[#This Row],[Apr]]/Trošak_prodaje[[#Totals],[Apr]],"-") -> 12% | V5: =IFERROR(Trošak_prodaje[[#This Row],[Maj]]/Trošak_prodaje[[#Totals],[Maj]],"-") -> 31% | W5: =IFERROR(Trošak_prodaje[[#This Row],[Jun]]/Trošak_prodaje[[#Totals],[Jun]],"-") -> 16% | X5: =IFERROR(Trošak_prodaje[[#This Row],[Jul]]/Trošak_prodaje[[#Totals],[Jul]],"-") -> 5% | Y5: =IFERROR(Trošak_prodaje[[#This Row],[Avg]]/Trošak_prodaje[[#Totals],[Avg]],"-") -> 12% | Z5: =IFERROR(Trošak_prodaje[[#This Row],[Sep]]/Trošak_prodaje[[#Totals],[Sep]],"-") -> 3% | AA5: =IFERROR(Trošak_prodaje[[#This Row],[Okt]]/Trošak_prodaje[[#Totals],[Okt]],"-") -> 47% | AB5: =IFERROR(Trošak_prodaje[[#This Row],[Nov]]/Trošak_prodaje[[#Totals],[Nov]],"-") -> 23% | AC5: =IFERROR(Trošak_prodaje[[#This Row],[Dec]]/Trošak_prodaje[[#Totals],[Dec]],"-") -> 14% | AD5: =IFERROR(Trošak_prodaje[[#This Row],[Godišnje]]/Trošak_prodaje[[#Totals],[Godišnje]],"-") -> 19%
B6: Trošak 2 | D6: 7 RSD | E6: 5 RSD | F6: 69 RSD | G6: 32 RSD | H6: 11 RSD | I6: 30 RSD | J6: 27 RSD | K6: 32 RSD | L6: 10 RSD | M6: 41 RSD | N6: 13 RSD | O6: 105 RSD | P6: =SUM(Trošak_prodaje[[#This Row],[Jan]:[Dec]]) -> 382 RSD | Q6: 18% | R6: =IFERROR(Trošak_prodaje[[#This Row],[Jan]]/Trošak_prodaje[[#Totals],[Jan]],"-") -> 3% | S6: =IFERROR(Trošak_prodaje[[#This Row],[Feb]]/Trošak_prodaje[[#Totals],[Feb]],"-") -> 1% | T6: =IFERROR(Trošak_prodaje[[#This Row],[Mart]]/Trošak_prodaje[[#Totals],[Mart]],"-") -> 22% | U6: =IFERROR(Trošak_prodaje[[#This Row],[Apr]]/Trošak_prodaje[[#Totals],[Apr]],"-") -> 13% | V6: =IFERROR(Trošak_prodaje[[#This Row],[Maj]]/Trošak_prodaje[[#Totals],[Maj]],"-") -> 3% | W6: =IFERROR(Trošak_prodaje[[#This Row],[Jun]]/Trošak_prodaje[[#Totals],[Jun]],"-") -> 10% | X6: =IFERROR(Trošak_prodaje[[#This Row],[Jul]]/Trošak_prodaje[[#Totals],[Jul]],"-") -> 9% | Y6: =IFERROR(Trošak_prodaje[[#This Row],[Avg]]/Trošak_prodaje[[#Totals],[Avg]],"-") -> 14% | Z6: =IFERROR(Trošak_prodaje[[#This Row],[Sep]]/Trošak_prodaje[[#Totals],[Sep]],"-") -> 2% | AA6: =IFERROR(Trošak_prodaje[[#This Row],[Okt]]/Trošak_prodaje[[#Totals],[Okt]],"-") -> 15% | AB6: =IFERROR(Trošak_prodaje[[#This Row],[Nov]]/Trošak_prodaje[[#Totals],[Nov]],"-") -> 5% | AC6: =IFERROR(Trošak_prodaje[[#This Row],[Dec]]/Trošak_prodaje[[#Totals],[Dec]],"-") -> 23% | AD6: =IFERROR(Trošak_prodaje[[#This Row],[Godišnje]]/Trošak_prodaje[[#Totals],[Godišnje]],"-") -> 10%
B7: Trošak 3 | D7: 99 RSD | E7: 95 RSD | F7: 51 RSD | G7: 90 RSD | H7: 21 RSD | I7: 34 RSD | J7: 30 RSD | K7: 24 RSD | L7: 109 RSD | M7: 16 RSD | N7: 21 RSD | O7: 52 RSD | P7: =SUM(Trošak_prodaje[[#This Row],[Jan]:[Dec]]) -> 642 RSD | Q7: 19% | R7: =IFERROR(Trošak_prodaje[[#This Row],[Jan]]/Trošak_prodaje[[#Totals],[Jan]],"-") -> 37% | S7: =IFERROR(Trošak_prodaje[[#This Row],[Feb]]/Trošak_prodaje[[#Totals],[Feb]],"-") -> 27% | T7: =IFERROR(Trošak_prodaje[[#This Row],[Mart]]/Trošak_prodaje[[#Totals],[Mart]],"-") -> 16% | U7: =IFERROR(Trošak_prodaje[[#This Row],[Apr]]/Trošak_prodaje[[#Totals],[Apr]],"-") -> 37% | V7: =IFERROR(Trošak_prodaje[[#This Row],[Maj]]/Trošak_prodaje[[#Totals],[Maj]],"-") -> 5% | W7: =IFERROR(Trošak_prodaje[[#This Row],[Jun]]/Trošak_prodaje[[#Totals],[Jun]],"-") -> 11% | X7: =IFERROR(Trošak_prodaje[[#This Row],[Jul]]/Trošak_prodaje[[#Totals],[Jul]],"-") -> 10% | Y7: =IFERROR(Trošak_prodaje[[#This Row],[Avg]]/Trošak_prodaje[[#Totals],[Avg]],"-") -> 11% | Z7: =IFERROR(Trošak_prodaje[[#This Row],[Sep]]/Trošak_prodaje[[#Totals],[Sep]],"-") -> 26% | AA7: =IFERROR(Trošak_prodaje[[#This Row],[Okt]]/Trošak_prodaje[[#Totals],[Okt]],"-") -> 6% | AB7: =IFERROR(Trošak_prodaje[[#This Row],[Nov]]/Trošak_prodaje[[#Totals],[Nov]],"-") -> 8% | AC7: =IFERROR(Trošak_prodaje[[#This Row],[Dec]]/Trošak_prodaje[[#Totals],[Dec]],"-") -> 11% | AD7: =IFERROR(Trošak_prodaje[[#This Row],[Godišnje]]/Trošak_prodaje[[#Totals],[Godišnje]],"-") -> 17%
B8: Trošak 4 | D8: 13 RSD | E8: 28 RSD | F8: 15 RSD | G8: 8 RSD | H8: 84 RSD | I8: 12 RSD | J8: 54 RSD | K8: 72 RSD | L8: 49 RSD | M8: 24 RSD | N8: 60 RSD | O8: 39 RSD | P8: =SUM(Trošak_prodaje[[#This Row],[Jan]:[Dec]]) -> 458 RSD | Q8: 11% | R8: =IFERROR(Trošak_prodaje[[#This Row],[Jan]]/Trošak_prodaje[[#Totals],[Jan]],"-") -> 5% | S8: =IFERROR(Trošak_prodaje[[#This Row],[Feb]]/Trošak_prodaje[[#Totals],[Feb]],"-") -> 8% | T8: =IFERROR(Trošak_prodaje[[#This Row],[Mart]]/Trošak_prodaje[[#Totals],[Mart]],"-") -> 5% | U8: =IFERROR(Trošak_prodaje[[#This Row],[Apr]]/Trošak_prodaje[[#Totals],[Apr]],"-") -> 3% | V8: =IFERROR(Trošak_prodaje[[#This Row],[Maj]]/Trošak_prodaje[[#Totals],[Maj]],"-") -> 21% | W8: =IFERROR(Trošak_prodaje[[#This Row],[Jun]]/Trošak_prodaje[[#Totals],[Jun]],"-") -> 4% | X8: =IFERROR(Trošak_prodaje[[#This Row],[Jul]]/Trošak_prodaje[[#Totals],[Jul]],"-") -> 18% | Y8: =IFERROR(Trošak_prodaje[[#This Row],[Avg]]/Trošak_prodaje[[#Totals],[Avg]],"-") -> 32% | Z8: =IFERROR(Trošak_prodaje[[#This Row],[Sep]]/Trošak_prodaje[[#Totals],[Sep]],"-") -> 12% | AA8: =IFERROR(Trošak_prodaje[[#This Row],[Okt]]/Trošak_prodaje[[#Totals],[Okt]],"-") -> 9% | AB8: =IFERROR(Trošak_prodaje[[#This Row],[Nov]]/Trošak_prodaje[[#Totals],[Nov]],"-") -> 23% | AC8: =IFERROR(Trošak_prodaje[[#This Row],[Dec]]/Trošak_prodaje[[#Totals],[Dec]],"-") -> 9% | AD8: =IFERROR(Trošak_prodaje[[#This Row],[Godišnje]]/Trošak_prodaje[[#Totals],[Godišnje]],"-") -> 12%
B9: Trošak 5 | D9: 34 RSD | E9: 78 RSD | F9: 43 RSD | G9: 30 RSD | H9: 77 RSD | I9: 54 RSD | J9: 26 RSD | K9: 13 RSD | L9: 56 RSD | M9: 30 RSD | N9: 40 RSD | O9: 63 RSD | P9: =SUM(Trošak_prodaje[[#This Row],[Jan]:[Dec]]) -> 544 RSD | Q9: 20% | R9: =IFERROR(Trošak_prodaje[[#This Row],[Jan]]/Trošak_prodaje[[#Totals],[Jan]],"-") -> 13% | S9: =IFERROR(Trošak_prodaje[[#This Row],[Feb]]/Trošak_prodaje[[#Totals],[Feb]],"-") -> 22% | T9: =IFERROR(Trošak_prodaje[[#This Row],[Mart]]/Trošak_prodaje[[#Totals],[Mart]],"-") -> 14% | U9: =IFERROR(Trošak_prodaje[[#This Row],[Apr]]/Trošak_prodaje[[#Totals],[Apr]],"-") -> 12% | V9: =IFERROR(Trošak_prodaje[[#This Row],[Maj]]/Trošak_prodaje[[#Totals],[Maj]],"-") -> 19% | W9: =IFERROR(Trošak_prodaje[[#This Row],[Jun]]/Trošak_prodaje[[#Totals],[Jun]],"-") -> 17% | X9: =IFERROR(Trošak_prodaje[[#This Row],[Jul]]/Trošak_prodaje[[#Totals],[Jul]],"-") -> 9% | Y9: =IFERROR(Trošak_prodaje[[#This Row],[Avg]]/Trošak_prodaje[[#Totals],[Avg]],"-") -> 6% | Z9: =IFERROR(Trošak_prodaje[[#This Row],[Sep]]/Trošak_prodaje[[#Totals],[Sep]],"-") -> 14% | AA9: =IFERROR(Trošak_prodaje[[#This Row],[Okt]]/Trošak_prodaje[[#Totals],[Okt]],"-") -> 11% | AB9: =IFERROR(Trošak_prodaje[[#This Row],[Nov]]/Trošak_prodaje[[#Totals],[Nov]],"-") -> 15% | AC9: =IFERROR(Trošak_prodaje[[#This Row],[Dec]]/Trošak_prodaje[[#Totals],[Dec]],"-") -> 14% | AD9: =IFERROR(Trošak_prodaje[[#This Row],[Godišnje]]/Trošak_prodaje[[#Totals],[Godišnje]],"-") -> 14%
B10: Trošak 6 | D10: 33 RSD | E10: 61 RSD | F10: 42 RSD | G10: 43 RSD | H10: 19 RSD | I10: 94 RSD | J10: 46 RSD | K10: 15 RSD | L10: 55 RSD | M10: 15 RSD | N10: 37 RSD | O10: 89 RSD | P10: =SUM(Trošak_prodaje[[#This Row],[Jan]:[Dec]]) -> 549 RSD | Q10: 10% | R10: =IFERROR(Trošak_prodaje[[#This Row],[Jan]]/Trošak_prodaje[[#Totals],[Jan]],"-") -> 12% | S10: =IFERROR(Trošak_prodaje[[#This Row],[Feb]]/Trošak_prodaje[[#Totals],[Feb]],"-") -> 17% | T10: =IFERROR(Trošak_prodaje[[#This Row],[Mart]]/Trošak_prodaje[[#Totals],[Mart]],"-") -> 13% | U10: =IFERROR(Trošak_prodaje[[#This Row],[Apr]]/Trošak_prodaje[[#Totals],[Apr]],"-") -> 18% | V10: =IFERROR(Trošak_prodaje[[#This Row],[Maj]]/Trošak_prodaje[[#Totals],[Maj]],"-") -> 5% | W10: =IFERROR(Trošak_prodaje[[#This Row],[Jun]]/Trošak_prodaje[[#Totals],[Jun]],"-") -> 30% | X10: =IFERROR(Trošak_prodaje[[#This Row],[Jul]]/Trošak_prodaje[[#Totals],[Jul]],"-") -> 15% | Y10: =IFERROR(Trošak_prodaje[[#This Row],[Avg]]/Trošak_prodaje[[#Totals],[Avg]],"-") -> 7% | Z10: =IFERROR(Trošak_prodaje[[#This Row],[Sep]]/Trošak_prodaje[[#Totals],[Sep]],"-") -> 13% | AA10: =IFERROR(Trošak_prodaje[[#This Row],[Okt]]/Trošak_prodaje[[#Totals],[Okt]],"-") -> 5% | AB10: =IFERROR(Trošak_prodaje[[#This Row],[Nov]]/Trošak_prodaje[[#Totals],[Nov]],"-") -> 14% | AC10: =IFERROR(Trošak_prodaje[[#This Row],[Dec]]/Trošak_prodaje[[#Totals],[Dec]],"-") -> 20% | AD10: =IFERROR(Trošak_prodaje[[#This Row],[Godišnje]]/Trošak_prodaje[[#Totals],[Godišnje]],"-") -> 14%
B11: Trošak 7 | D11: 18 RSD | E11: 11 RSD | F11: 30 RSD | G11: 9 RSD | H11: 62 RSD | I11: 39 RSD | J11: 102 RSD | K11: 44 RSD | L11: 121 RSD | M11: 19 RSD | N11: 33 RSD | O11: 40 RSD | P11: =SUM(Trošak_prodaje[[#This Row],[Jan]:[Dec]]) -> 528 RSD | Q11: 10% | R11: =IFERROR(Trošak_prodaje[[#This Row],[Jan]]/Trošak_prodaje[[#Totals],[Jan]],"-") -> 7% | S11: =IFERROR(Trošak_prodaje[[#This Row],[Feb]]/Trošak_prodaje[[#Totals],[Feb]],"-") -> 3% | T11: =IFERROR(Trošak_prodaje[[#This Row],[Mart]]/Trošak_prodaje[[#Totals],[Mart]],"-") -> 10% | U11: =IFERROR(Trošak_prodaje[[#This Row],[Apr]]/Trošak_prodaje[[#Totals],[Apr]],"-") -> 4% | V11: =IFERROR(Trošak_prodaje[[#This Row],[Maj]]/Trošak_prodaje[[#Totals],[Maj]],"-") -> 16% | W11: =IFERROR(Trošak_prodaje[[#This Row],[Jun]]/Trošak_prodaje[[#Totals],[Jun]],"-") -> 13% | X11: =IFERROR(Trošak_prodaje[[#This Row],[Jul]]/Trošak_prodaje[[#Totals],[Jul]],"-") -> 34% | Y11: =IFERROR(Trošak_prodaje[[#This Row],[Avg]]/Trošak_prodaje[[#Totals],[Avg]],"-") -> 19% | Z11: =IFERROR(Trošak_prodaje[[#This Row],[Sep]]/Trošak_prodaje[[#Totals],[Sep]],"-") -> 29% | AA11: =IFERROR(Trošak_prodaje[[#This Row],[Okt]]/Trošak_prodaje[[#Totals],[Okt]],"-") -> 7% | AB11: =IFERROR(Trošak_prodaje[[#This Row],[Nov]]/Trošak_prodaje[[#Totals],[Nov]],"-") -> 13% | AC11: =IFERROR(Trošak_prodaje[[#This Row],[Dec]]/Trošak_prodaje[[#Totals],[Dec]],"-") -> 9% | AD11: =IFERROR(Trošak_prodaje[[#This Row],[Godišnje]]/Trošak_prodaje[[#Totals],[Godišnje]],"-") -> 14%
B12: UKUPAN TROŠAK PRODAJE | D12: =SUBTOTAL(109,Trošak_prodaje[Jan]) -> 265 RSD | E12: =SUBTOTAL(109,Trošak_prodaje[Feb]) -> 356 RSD | F12: =SUBTOTAL(109,Trošak_prodaje[Mart]) -> 315 RSD | G12: =SUBTOTAL(109,Trošak_prodaje[Apr]) -> 241 RSD | H12: =SUBTOTAL(109,Trošak_prodaje[Maj]) -> 399 RSD | I12: =SUBTOTAL(109,Trošak_prodaje[Jun]) -> 312 RSD | J12: =SUBTOTAL(109,Trošak_prodaje[Jul]) -> 299 RSD | K12: =SUBTOTAL(109,Trošak_prodaje[Avg]) -> 226 RSD | L12: =SUBTOTAL(109,Trošak_prodaje[Sep]) -> 414 RSD | M12: =SUBTOTAL(109,Trošak_prodaje[Okt]) -> 274 RSD | N12: =SUBTOTAL(109,Trošak_prodaje[Nov]) -> 264 RSD | O12: =SUBTOTAL(109,Trošak_prodaje[Dec]) -> 453 RSD | P12: =SUBTOTAL(109,Trošak_prodaje[Godišnje]) -> 3,818 RSD | Q12: =SUBTOTAL(109,Trošak_prodaje[Indeks %]) -> 100% | R12: =SUBTOTAL(109,Trošak_prodaje[Jan %]) -> 100% | S12: =SUBTOTAL(109,Trošak_prodaje[Feb %]) -> 100% | T12: =SUBTOTAL(109,Trošak_prodaje[Mar %]) -> 100% | U12: =SUBTOTAL(109,Trošak_prodaje[Apr %]) -> 100% | V12: =SUBTOTAL(109,Trošak_prodaje[Maj %]) -> 100% | W12: =SUBTOTAL(109,Trošak_prodaje[Jun %]) -> 100% | X12: =SUBTOTAL(109,Trošak_prodaje[Jul %]) -> 100% | Y12: =SUBTOTAL(109,Trošak_prodaje[Avg %]) -> 100% | Z12: =SUBTOTAL(109,Trošak_prodaje[Sep %]) -> 100% | AA12: =SUBTOTAL(109,Trošak_prodaje[Okt %]) -> 100% | AB12: =SUBTOTAL(109,Trošak_prodaje[Nov %]) -> 100% | AC12: =SUBTOTAL(109,Trošak_prodaje[Dec %]) -> 100% | AD12: =SUBTOTAL(109,Trošak_prodaje[Godina %]) -> 100%
B14: Bruto profit | D14: =Prihod[[#Totals],[Jan]]-Trošak_prodaje[[#Totals],[Jan]] -> 359 RSD | E14: =Prihod[[#Totals],[Feb]]-Trošak_prodaje[[#Totals],[Feb]] -> 380 RSD | F14: =Prihod[[#Totals],[Mart]]-Trošak_prodaje[[#Totals],[Mart]] -> 505 RSD | G14: =Prihod[[#Totals],[Apr]]-Trošak_prodaje[[#Totals],[Apr]] -> 370 RSD | H14: =Prihod[[#Totals],[Maj]]-Trošak_prodaje[[#Totals],[Maj]] -> 413 RSD | I14: =Prihod[[#Totals],[Jun]]-Trošak_prodaje[[#Totals],[Jun]] -> 266 RSD | J14: =Prihod[[#Totals],[Jul]]-Trošak_prodaje[[#Totals],[Jul]] -> 298 RSD | K14: =Prihod[[#Totals],[Avg]]-Trošak_prodaje[[#Totals],[Avg]] -> 449 RSD | L14: =Prihod[[#Totals],[Sept]]-Trošak_prodaje[[#Totals],[Sep]] -> 330 RSD | M14: =Prihod[[#Totals],[Okt]]-Trošak_prodaje[[#Totals],[Okt]] -> 407 RSD | N14: =Prihod[[#Totals],[Nov]]-Trošak_prodaje[[#Totals],[Nov]] -> 475 RSD | O14: =Prihod[[#Totals],[Dec]]-Trošak_prodaje[[#Totals],[Dec]] -> 590 RSD | P14: =Prihod[[#Totals],[Godišnje]]-Trošak_prodaje[[#Totals],[Godišnje]] -> 4,842 RSD | R14: =D14/$P$14 -> 7% | S14: 8% | T14: 10% | U14: 8% | V14: 9% | W14: 5% | X14: 6% | Y14: 9% | Z14: 7% | AA14: 8% | AB14: 10% | AC14: 12% | AD14: 100%

Sheet Troškovi
B1: =Naslov_perioda_projekcije -> Dvanaest meseci | AD1: =Ime_preduzeća -> Ime preduzeća
B2: ='Prihodi (prodaja)'!$B$2 -> PROJEKCIJA PROFITA I GUBITKA | AB2: FISKALNA GODINA: | AC2: =FYMonthStart -> JAN | AD2: =FYStartYear -> 2017
D3: =UPPER(TEXT(DATE(FYStartYear,FYMonthNo,1),"mmm-yy")) -> JAN-17 | E3: =UPPER(TEXT(DATE(FYStartYear,FYMonthNo+1,1),"mmm-yy")) -> FEB-17 | F3: =UPPER(TEXT(DATE(FYStartYear,FYMonthNo+2,1),"mmm-yy")) -> MART-17 | G3: =UPPER(TEXT(DATE(FYStartYear,FYMonthNo+3,1),"mmm-yy")) -> APR-17 | H3: =UPPER(TEXT(DATE(FYStartYear,FYMonthNo+4,1),"mmm-yy")) -> MAJ-17 | I3: =UPPER(TEXT(DATE(FYStartYear,FYMonthNo+5,1),"mmm-yy")) -> JUN-17 | J3: =UPPER(TEXT(DATE(FYStartYear,FYMonthNo+6,1),"mmm-yy")) -> JUL-17 | K3: =UPPER(TEXT(DATE(FYStartYear,FYMonthNo+7,1),"mmm-yy")) -> AVG-17 | L3: =UPPER(TEXT(DATE(FYStartYear,FYMonthNo+8,1),"mmm-yy")) -> SEPT-17 | M3: =UPPER(TEXT(DATE(FYStartYear,FYMonthNo+9,1),"mmm-yy")) -> OKT-17 | N3: =UPPER(TEXT(DATE(FYStartYear,FYMonthNo+10,1),"mmm-yy")) -> NOV-17 | O3: =UPPER(TEXT(DATE(FYStartYear,FYMonthNo+11,1),"mmm-yy")) -> DEC-17 | P3: GODIŠNJE | Q3: IND % | R3: =LEFT(D3,3)&" %" -> JAN % | S3: =LEFT(E3,3)&" %" -> FEB % | T3: MAR % | U3: APR % | V3: MAJ % | W3: JUN % | X3: JUL % | Y3: AVG % | Z3: SEP % | AA3: OKT % | AB3: NOV % | AC3: DEC % | AD3: GODINA %
B4: TROŠKOVI | C4: TREND | D4: Jan | E4: Feb | F4: Mart | G4: Apr | H4: Maj | I4: Jun | J4: Jul | K4: Avg | L4: Sep | M4: Okt | N4: Nov | O4: Dec | P4: Godišnje | Q4: Indeks % | R4: Jan % | S4: Feb % | T4: Mar % | U4: Apr % | V4: Maj % | W4: Jun % | X4: Jul % | Y4: Avg % | Z4: Sep % | AA4: Okt % | AB4: Nov % | AC4: Dec % | AD4: Godina %
B5: Troškovi za plate | D5: 10 RSD | E5: 18 RSD | F5: 13 RSD | G5: 8 RSD | H5: 22 RSD | I5: 18 RSD | J5: 8 RSD | K5: 17 RSD | L5: 20 RSD | M5: 8 RSD | N5: 4 RSD | O5: 12 RSD | P5: =SUM(tblExpenses[[#This Row],[Jan]:[Dec]]) -> 158 RSD | Q5: 12% | R5: =tblExpenses[[#This Row],[Jan]]/tblExpenses[[#Totals],[Jan]] -> 4% | S5: =tblExpenses[[#This Row],[Feb]]/tblExpenses[[#Totals],[Feb]] -> 9% | T5: =tblExpenses[[#This Row],[Mart]]/tblExpenses[[#Totals],[Mart]] -> 5% | U5: =tblExpenses[[#This Row],[Apr]]/tblExpenses[[#Totals],[Apr]] -> 3% | V5: =tblExpenses[[#This Row],[Maj]]/tblExpenses[[#Totals],[Maj]] -> 9% | W5: =tblExpenses[[#This Row],[Jun]]/tblExpenses[[#Totals],[Jun]] -> 7% | X5: =tblExpenses[[#This Row],[Jul]]/tblExpenses[[#Totals],[Jul]] -> 3% | Y5: =tblExpenses[[#This Row],[Avg]]/tblExpenses[[#Totals],[Avg]] -> 7% | Z5: =tblExpenses[[#This Row],[Sep]]/tblExpenses[[#Totals],[Sep]] -> 9% | AA5: =tblExpenses[[#This Row],[Okt]]/tblExpenses[[#Totals],[Okt]] -> 3% | AB5: =tblExpenses[[#This Row],[Nov]]/tblExpenses[[#Totals],[Nov]] -> 1% | AC5: =tblExpenses[[#This Row],[Dec]]/tblExpenses[[#Totals],[Dec]] -> 5% | AD5: =tblExpenses[[#This Row],[Godišnje]]/tblExpenses[[#Totals],[Godišnje]] -> 5%
B6: Troškovi platnog spiska | D6: 23 RSD | E6: 11 RSD | F6: 7 RSD | G6: 14 RSD | H6: 12 RSD | I6: 19 RSD | J6: 19 RSD | K6: 4 RSD | L6: 7 RSD | M6: 13 RSD | N6: 25 RSD | O6: 5 RSD | P6: =SUM(tblExpenses[[#This Row],[Jan]:[Dec]]) -> 159 RSD | Q6: 9% | R6: =tblExpenses[[#This Row],[Jan]]/tblExpenses[[#Totals],[Jan]] -> 10% | S6: =tblExpenses[[#This Row],[Feb]]/tblExpenses[[#Totals],[Feb]] -> 5% | T6: =tblExpenses[[#This Row],[Mart]]/tblExpenses[[#Totals],[Mart]] -> 3% | U6: =tblExpenses[[#This Row],[Apr]]/tblExpenses[[#Totals],[Apr]] -> 5% | V6: =tblExpenses[[#This Row],[Maj]]/tblExpenses[[#Totals],[Maj]] -> 5% | W6: =tblExpenses[[#This Row],[Jun]]/tblExpenses[[#Totals],[Jun]] -> 7% | X6: =tblExpenses[[#This Row],[Jul]]/tblExpenses[[#Totals],[Jul]] -> 7% | Y6: =tblExpenses[[#This Row],[Avg]]/tblExpenses[[#Totals],[Avg]] -> 2% | Z6: =tblExpenses[[#This Row],[Sep]]/tblExpenses[[#Totals],[Sep]] -> 3% | AA6: =tblExpenses[[#This Row],[Okt]]/tblExpenses[[#Totals],[Okt]] -> 5% | AB6: =tblExpenses[[#This Row],[Nov]]/tblExpenses[[#Totals],[Nov]] -> 8% | AC6: =tblExpenses[[#This Row],[Dec]]/tblExpenses[[#Totals],[Dec]] -> 2% | AD6: =tblExpenses[[#This Row],[Godišnje]]/tblExpenses[[#Totals],[Godišnje]] -> 5%
B7: Spoljne usluge | D7: 23 RSD | E7: 20 RSD | F7: 3 RSD | G7: 16 RSD | H7: 10 RSD | I7: 5 RSD | J7: 20 RSD | K7: 7 RSD | L7: 4 RSD | M7: 22 RSD | N7: 13 RSD | O7: 14 RSD | P7: =SUM(tblExpenses[[#This Row],[Jan]:[Dec]]) -> 157 RSD | Q7: 2% | R7: =tblExpenses[[#This Row],[Jan]]/tblExpenses[[#Totals],[Jan]] -> 10% | S7: =tblExpenses[[#This Row],[Feb]]/tblExpenses[[#Totals],[Feb]] -> 10% | T7: =tblExpenses[[#This Row],[Mart]]/tblExpenses[[#Totals],[Mart]] -> 1% | U7: =tblExpenses[[#This Row],[Apr]]/tblExpenses[[#Totals],[Apr]] -> 6% | V7: =tblExpenses[[#This Row],[Maj]]/tblExpenses[[#Totals],[Maj]] -> 4% | W7: =tblExpenses[[#This Row],[Jun]]/tblExpenses[[#Totals],[Jun]] -> 2% | X7: =tblExpenses[[#This Row],[Jul]]/tblExpenses[[#Totals],[Jul]] -> 8% | Y7: =tblExpenses[[#This Row],[Avg]]/tblExpenses[[#Totals],[Avg]] -> 3% | Z7: =tblExpenses[[#This Row],[Sep]]/tblExpenses[[#Totals],[Sep]] -> 2% | AA7: =tblExpenses[[#This Row],[Okt]]/tblExpenses[[#Totals],[Okt]] -> 8% | AB7: =tblExpenses[[#This Row],[Nov]]/tblExpenses[[#Totals],[Nov]] -> 4% | AC7: =tblExpenses[[#This Row],[Dec]]/tblExpenses[[#Totals],[Dec]] -> 6% | AD7: =tblExpenses[[#This Row],[Godišnje]]/tblExpenses[[#Totals],[Godišnje]] -> 5%
B8: Zalihe (kancelarijske i operativne) | D8: 19 RSD | E8: 4 RSD | F8: 7 RSD | G8: 14 RSD | H8: 22 RSD | I8: 10 RSD | J8: 22 RSD | K8: 5 RSD | L8: 4 RSD | M8: 12 RSD | N8: 18 RSD | O8: 24 RSD | P8: =SUM(tblExpenses[[#This Row],[Jan]:[Dec]]) -> 161 RSD | Q8: 8% | R8: =tblExpenses[[#This Row],[Jan]]/tblExpenses[[#Totals],[Jan]] -> 8% | S8: =tblExpenses[[#This Row],[Feb]]/tblExpenses[[#Totals],[Feb]] -> 2% | T8: =tblExpenses[[#This Row],[Mart]]/tblExpenses[[#Totals],[Mart]] -> 3% | U8: =tblExpenses[[#This Row],[Apr]]/tblExpenses[[#Totals],[Apr]] -> 5% | V8: =tblExpenses[[#This Row],[Maj]]/tblExpenses[[#Totals],[Maj]] -> 9% | W8: =tblExpenses[[#This Row],[Jun]]/tblExpenses[[#Totals],[Jun]] -> 4% | X8: =tblExpenses[[#This Row],[Jul]]/tblExpenses[[#Totals],[Jul]] -> 8% | Y8: =tblExpenses[[#This Row],[Avg]]/tblExpenses[[#Totals],[Avg]] -> 2% | Z8: =tblExpenses[[#This Row],[Sep]]/tblExpenses[[#Totals],[Sep]] -> 2% | AA8: =tblExpenses[[#This Row],[Okt]]/tblExpenses[[#Totals],[Okt]] -> 5% | AB8: =tblExpenses[[#This Row],[Nov]]/tblExpenses[[#Totals],[Nov]] -> 6% | AC8: =tblExpenses[[#This Row],[Dec]]/tblExpenses[[#Totals],[Dec]] -> 10% | AD8: =tblExpenses[[#This Row],[Godišnje]]/tblExpenses[[#Totals],[Godišnje]] -> 5%
B9: Popravke i održavanje | D9: 11 RSD | E9: 11 RSD | F9: 17 RSD | G9: 12 RSD | H9: 2 RSD | I9: 14 RSD | J9: 12 RSD | K9: 10 RSD | L9: 18 RSD | M9: 11 RSD | N9: 23 RSD | O9: 11 RSD | P9: =SUM(tblExpenses[[#This Row],[Jan]:[Dec]]) -> 152 RSD | Q9: 3% | R9: =tblExpenses[[#This Row],[Jan]]/tblExpenses[[#Totals],[Jan]] -> 5% | S9: =tblExpenses[[#This Row],[Feb]]/tblExpenses[[#Totals],[Feb]] -> 5% | T9: =tblExpenses[[#This Row],[Mart]]/tblExpenses[[#Totals],[Mart]] -> 7% | U9: =tblExpenses[[#This Row],[Apr]]/tblExpenses[[#Totals],[Apr]] -> 5% | V9: =tblExpenses[[#This Row],[Maj]]/tblExpenses[[#Totals],[Maj]] -> 1% | W9: =tblExpenses[[#This Row],[Jun]]/tblExpenses[[#Totals],[Jun]] -> 5% | X9: =tblExpenses[[#This Row],[Jul]]/tblExpenses[[#Totals],[Jul]] -> 5% | Y9: =tblExpenses[[#This Row],[Avg]]/tblExpenses[[#Totals],[Avg]] -> 4% | Z9: =tblExpenses[[#This Row],[Sep]]/tblExpenses[[#Totals],[Sep]] -> 8% | AA9: =tblExpenses[[#This Row],[Okt]]/tblExpenses[[#Totals],[Okt]] -> 4% | AB9: =tblExpenses[[#This Row],[Nov]]/tblExpenses[[#Totals],[Nov]] -> 8% | AC9: =tblExpenses[[#This Row],[Dec]]/tblExpenses[[#Totals],[Dec]] -> 5% | AD9: =tblExpenses[[#This Row],[Godišnje]]/tblExpenses[[#Totals],[Godišnje]] -> 5%
B10: Reklamiranje | D10: 2 RSD | E10: 16 RSD | F10: 6 RSD | G10: 13 RSD | H10: 11 RSD | I10: 22 RSD | J10: 21 RSD | K10: 3 RSD | L10: 12 RSD | M10: 7 RSD | N10: 17 RSD | O10: 20 RSD | P10: =SUM(tblExpenses[[#This Row],[Jan]:[Dec]]) -> 150 RSD | Q10: 15% | R10: =tblExpenses[[#This Row],[Jan]]/tblExpenses[[#Totals],[Jan]] -> 1% | S10: =tblExpenses[[#This Row],[Feb]]/tblExpenses[[#Totals],[Feb]] -> 8% | T10: =tblExpenses[[#This Row],[Mart]]/tblExpenses[[#Totals],[Mart]] -> 2% | U10: =tblExpenses[[#This Row],[Apr]]/tblExpenses[[#Totals],[Apr]] -> 5% | V10: =tblExpenses[[#This Row],[Maj]]/tblExpenses[[#Totals],[Maj]] -> 4% | W10: =tblExpenses[[#This Row],[Jun]]/tblExpenses[[#Totals],[Jun]] -> 8% | X10: =tblExpenses[[#This Row],[Jul]]/tblExpenses[[#Totals],[Jul]] -> 8% | Y10: =tblExpenses[[#This Row],[Avg]]/tblExpenses[[#Totals],[Avg]] -> 1% | Z10: =tblExpenses[[#This Row],[Sep]]/tblExpenses[[#Totals],[Sep]] -> 5% | AA10: =tblExpenses[[#This Row],[Okt]]/tblExpenses[[#Totals],[Okt]] -> 3% | AB10: =tblExpenses[[#This Row],[Nov]]/tblExpenses[[#Totals],[Nov]] -> 6% | AC10: =tblExpenses[[#This Row],[Dec]]/tblExpenses[[#Totals],[Dec]] -> 9% | AD10: =tblExpenses[[#This Row],[Godišnje]]/tblExpenses[[#Totals],[Godišnje]] -> 5%
B11: Automobil, isporuka i putovanja | D11: 8 RSD | E11: 17 RSD | F11: 11 RSD | G11: 11 RSD | H11: 21 RSD | I11: 9 RSD | J11: 20 RSD | K11: 3 RSD | L11: 14 RSD | M11: 22 RSD | N11: 16 RSD | O11: 12 RSD | P11: =SUM(tblExpenses[[#This Row],[Jan]:[Dec]]) -> 164 RSD | Q11: 12% | R11: =tblExpenses[[#This Row],[Jan]]/tblExpenses[[#Totals],[Jan]] -> 3% | S11: =tblExpenses[[#This Row],[Feb]]/tblExpenses[[#Totals],[Feb]] -> 8% | T11: =tblExpenses[[#This Row],[Mart]]/tblExpenses[[#Totals],[Mart]] -> 4% | U11: =tblExpenses[[#This Row],[Apr]]/tblExpenses[[#Totals],[Apr]] -> 4% | V11: =tblExpenses[[#This Row],[Maj]]/tblExpenses[[#Totals],[Maj]] -> 8% | W11: =tblExpenses[[#This Row],[Jun]]/tblExpenses[[#Totals],[Jun]] -> 3% | X11: =tblExpenses[[#This Row],[Jul]]/tblExpenses[[#Totals],[Jul]] -> 8% | Y11: =tblExpenses[[#This Row],[Avg]]/tblExpenses[[#Totals],[Avg]] -> 1% | Z11: =tblExpenses[[#This Row],[Sep]]/tblExpenses[[#Totals],[Sep]] -> 6% | AA11: =tblExpenses[[#This Row],[Okt]]/tblExpenses[[#Totals],[Okt]] -> 8% | AB11: =tblExpenses[[#This Row],[Nov]]/tblExpenses[[#Totals],[Nov]] -> 5% | AC11: =tblExpenses[[#This Row],[Dec]]/tblExpenses[[#Totals],[Dec]] -> 5% | AD11: =tblExpenses[[#This Row],[Godišnje]]/tblExpenses[[#Totals],[Godišnje]] -> 5%
B12: Računovodstvo i pravni sektor | D12: 5 RSD | E12: 13 RSD | F12: 6 RSD | G12: 15 RSD | H12: 19 RSD | I12: 10 RSD | J12: 12 RSD | K12: 9 RSD | L12: 15 RSD | M12: 16 RSD | N12: 4 RSD | O12: 9 RSD | P12: =SUM(tblExpenses[[#This Row],[Jan]:[Dec]]) -> 133 RSD | Q12: 9% | R12: =tblExpenses[[#This Row],[Jan]]/tblExpenses[[#Totals],[Jan]] -> 2% | S12: =tblExpenses[[#This Row],[Feb]]/tblExpenses[[#Totals],[Feb]] -> 6% | T12: =tblExpenses[[#This Row],[Mart]]/tblExpenses[[#Totals],[Mart]] -> 2% | U12: =tblExpenses[[#This Row],[Apr]]/tblExpenses[[#Totals],[Apr]] -> 6% | V12: =tblExpenses[[#This Row],[Maj]]/tblExpenses[[#Totals],[Maj]] -> 7% | W12: =tblExpenses[[#This Row],[Jun]]/tblExpenses[[#Totals],[Jun]] -> 4% | X12: =tblExpenses[[#This Row],[Jul]]/tblExpenses[[#Totals],[Jul]] -> 5% | Y12: =tblExpenses[[#This Row],[Avg]]/tblExpenses[[#Totals],[Avg]] -> 4% | Z12: =tblExpenses[[#This Row],[Sep]]/tblExpenses[[#Totals],[Sep]] -> 7% | AA12: =tblExpenses[[#This Row],[Okt]]/tblExpenses[[#Totals],[Okt]] -> 6% | AB12: =tblExpenses[[#This Row],[Nov]]/tblExpenses[[#Totals],[Nov]] -> 1% | AC12: =tblExpenses[[#This Row],[Dec]]/tblExpenses[[#Totals],[Dec]] -> 4% | AD12: =tblExpenses[[#This Row],[Godišnje]]/tblExpenses[[#Totals],[Godišnje]] -> 4%
B13: Renta | D13: 8 RSD | E13: 4 RSD | F13: 23 RSD | G13: 25 RSD | H13: 10 RSD | I13: 24 RSD | J13: 22 RSD | K13: 5 RSD | L13: 12 RSD | M13: 24 RSD | N13: 24 RSD | O13: 12 RSD | P13: =SUM(tblExpenses[[#This Row],[Jan]:[Dec]]) -> 193 RSD | Q13: 1% | R13: =tblExpenses[[#This Row],[Jan]]/tblExpenses[[#Totals],[Jan]] -> 3% | S13: =tblExpenses[[#This Row],[Feb]]/tblExpenses[[#Totals],[Feb]] -> 2% | T13: =tblExpenses[[#This Row],[Mart]]/tblExpenses[[#Totals],[Mart]] -> 9% | U13: =tblExpenses[[#This Row],[Apr]]/tblExpenses[[#Totals],[Apr]] -> 10% | V13: =tblExpenses[[#This Row],[Maj]]/tblExpenses[[#Totals],[Maj]] -> 4% | W13: =tblExpenses[[#This Row],[Jun]]/tblExpenses[[#Totals],[Jun]] -> 9% | X13: =tblExpenses[[#This Row],[Jul]]/tblExpenses[[#Totals],[Jul]] -> 8% | Y13: =tblExpenses[[#This Row],[Avg]]/tblExpenses[[#Totals],[Avg]] -> 2% | Z13: =tblExpenses[[#This Row],[Sep]]/tblExpenses[[#Totals],[Sep]] -> 5% | AA13: =tblExpenses[[#This Row],[Okt]]/tblExpenses[[#Totals],[Okt]] -> 9% | AB13: =tblExpenses[[#This Row],[Nov]]/tblExpenses[[#Totals],[Nov]] -> 8% | AC13: =tblExpenses[[#This Row],[Dec]]/tblExpenses[[#Totals],[Dec]] -> 5% | AD13: =tblExpenses[[#This Row],[Godišnje]]/tblExpenses[[#Totals],[Godišnje]] -> 6%
B14: Telefon | D14: 25 RSD | E14: 2 RSD | F14: 12 RSD | G14: 25 RSD | H14: 10 RSD | I14: 24 RSD | J14: 3 RSD | K14: 20 RSD | L14: 3 RSD | M14: 9 RSD | N14: 20 RSD | O14: 18 RSD | P14: =SUM(tblExpenses[[#This Row],[Jan]:[Dec]]) -> 171 RSD | Q14: 1% | R14: =tblExpenses[[#This Row],[Jan]]/tblExpenses[[#Totals],[Jan]] -> 11% | S14: =tblExpenses[[#This Row],[Feb]]/tblExpenses[[#Totals],[Feb]] -> 1% | T14: =tblExpenses[[#This Row],[Mart]]/tblExpenses[[#Totals],[Mart]] -> 5% | U14: =tblExpenses[[#This Row],[Apr]]/tblExpenses[[#Totals],[Apr]] -> 10% | V14: =tblExpenses[[#This Row],[Maj]]/tblExpenses[[#Totals],[Maj]] -> 4% | W14: =tblExpenses[[#This Row],[Jun]]/tblExpenses[[#Totals],[Jun]] -> 9% | X14: =tblExpenses[[#This Row],[Jul]]/tblExpenses[[#Totals],[Jul]] -> 1% | Y14: =tblExpenses[[#This Row],[Avg]]/tblExpenses[[#Totals],[Avg]] -> 9% | Z14: =tblExpenses[[#This Row],[Sep]]/tblExpenses[[#Totals],[Sep]] -> 1% | AA14: =tblExpenses[[#This Row],[Okt]]/tblExpenses[[#Totals],[Okt]] -> 3% | AB14: =tblExpenses[[#This Row],[Nov]]/tblExpenses[[#Totals],[Nov]] -> 7% | AC14: =tblExpenses[[#This Row],[Dec]]/tblExpenses[[#Totals],[Dec]] -> 8% | AD14: =tblExpenses[[#This Row],[Godišnje]]/tblExpenses[[#Totals],[Godišnje]] -> 6%
B15: Komunalne usluge | D15: 16 RSD | E15: 19 RSD | F15: 9 RSD | G15: 16 RSD | H15: 13 RSD | I15: 2 RSD | J15: 4 RSD | K15: 24 RSD | L15: 16 RSD | M15: 22 RSD | N15: 7 RSD | O15: 18 RSD | P15: =SUM(tblExpenses[[#This Row],[Jan]:[Dec]]) -> 166 RSD | Q15: 1% | R15: =tblExpenses[[#This Row],[Jan]]/tblExpenses[[#Totals],[Jan]] -> 7% | S15: =tblExpenses[[#This Row],[Feb]]/tblExpenses[[#Totals],[Feb]] -> 9% | T15: =tblExpenses[[#This Row],[Mart]]/tblExpenses[[#Totals],[Mart]] -> 4% | U15: =tblExpenses[[#This Row],[Apr]]/tblExpenses[[#Totals],[Apr]] -> 6% | V15: =tblExpenses[[#This Row],[Maj]]/tblExpenses[[#Totals],[Maj]] -> 5% | W15: =tblExpenses[[#This Row],[Jun]]/tblExpenses[[#Totals],[Jun]] -> 1% | X15: =tblExpenses[[#This Row],[Jul]]/tblExpenses[[#Totals],[Jul]] -> 2% | Y15: =tblExpenses[[#This Row],[Avg]]/tblExpenses[[#Totals],[Avg]] -> 10% | Z15: =tblExpenses[[#This Row],[Sep]]/tblExpenses[[#Totals],[Sep]] -> 7% | AA15: =tblExpenses[[#This Row],[Okt]]/tblExpenses[[#Totals],[Okt]] -> 8% | AB15: =tblExpenses[[#This Row],[Nov]]/tblExpenses[[#Totals],[Nov]] -> 2% | AC15: =tblExpenses[[#This Row],[Dec]]/tblExpenses[[#Totals],[Dec]] -> 8% | AD15: =tblExpenses[[#This Row],[Godišnje]]/tblExpenses[[#Totals],[Godišnje]] -> 6%
B16: Osiguranje | D16: 12 RSD | E16: 9 RSD | F16: 16 RSD | G16: 19 RSD | H16: 25 RSD | I16: 17 RSD | J16: 20 RSD | K16: 14 RSD | L16: 5 RSD | M16: 14 RSD | N16: 5 RSD | O16: 2 RSD | P16: =SUM(tblExpenses[[#This Row],[Jan]:[Dec]]) -> 158 RSD | Q16: 1% | R16: =tblExpenses[[#This Row],[Jan]]/tblExpenses[[#Totals],[Jan]] -> 5% | S16: =tblExpenses[[#This Row],[Feb]]/tblExpenses[[#Totals],[Feb]] -> 4% | T16: =tblExpenses[[#This Row],[Mart]]/tblExpenses[[#Totals],[Mart]] -> 6% | U16: =tblExpenses[[#This Row],[Apr]]/tblExpenses[[#Totals],[Apr]] -> 7% | V16: =tblExpenses[[#This Row],[Maj]]/tblExpenses[[#Totals],[Maj]] -> 10% | W16: =tblExpenses[[#This Row],[Jun]]/tblExpenses[[#Totals],[Jun]] -> 6% | X16: =tblExpenses[[#This Row],[Jul]]/tblExpenses[[#Totals],[Jul]] -> 8% | Y16: =tblExpenses[[#This Row],[Avg]]/tblExpenses[[#Totals],[Avg]] -> 6% | Z16: =tblExpenses[[#This Row],[Sep]]/tblExpenses[[#Totals],[Sep]] -> 2% | AA16: =tblExpenses[[#This Row],[Okt]]/tblExpenses[[#Totals],[Okt]] -> 5% | AB16: =tblExpenses[[#This Row],[Nov]]/tblExpenses[[#Totals],[Nov]] -> 2% | AC16: =tblExpenses[[#This Row],[Dec]]/tblExpenses[[#Totals],[Dec]] -> 1% | AD16: =tblExpenses[[#This Row],[Godišnje]]/tblExpenses[[#Totals],[Godišnje]] -> 5%
B17: Porezi (nekretnine itd.) | D17: 16 RSD | E17: 13 RSD | F17: 10 RSD | G17: 7 RSD | H17: 13 RSD | I17: 3 RSD | J17: 13 RSD | K17: 17 RSD | L17: 9 RSD | M17: 4 RSD | N17: 22 RSD | O17: 18 RSD | P17: =SUM(tblExpenses[[#This Row],[Jan]:[Dec]]) -> 145 RSD | Q17: 14% | R17: =tblExpenses[[#This Row],[Jan]]/tblExpenses[[#Totals],[Jan]] -> 7% | S17: =tblExpenses[[#This Row],[Feb]]/tblExpenses[[#Totals],[Feb]] -> 6% | T17: =tblExpenses[[#This Row],[Mart]]/tblExpenses[[#Totals],[Mart]] -> 4% | U17: =tblExpenses[[#This Row],[Apr]]/tblExpenses[[#Totals],[Apr]] -> 3% | V17: =tblExpenses[[#This Row],[Maj]]/tblExpenses[[#Totals],[Maj]] -> 5% | W17: =tblExpenses[[#This Row],[Jun]]/tblExpenses[[#Totals],[Jun]] -> 1% | X17: =tblExpenses[[#This Row],[Jul]]/tblExpenses[[#Totals],[Jul]] -> 5% | Y17: =tblExpenses[[#This Row],[Avg]]/tblExpenses[[#Totals],[Avg]] -> 7% | Z17: =tblExpenses[[#This Row],[Sep]]/tblExpenses[[#Totals],[Sep]] -> 4% | AA17: =tblExpenses[[#This Row],[Okt]]/tblExpenses[[#Totals],[Okt]] -> 2% | AB17: =tblExpenses[[#This Row],[Nov]]/tblExpenses[[#Totals],[Nov]] -> 7% | AC17: =tblExpenses[[#This Row],[Dec]]/tblExpenses[[#Totals],[Dec]] -> 8% | AD17: =tblExpenses[[#This Row],[Godišnje]]/tblExpenses[[#Totals],[Godišnje]] -> 5%
B18: Kamata | D18: 3 RSD | E18: 2 RSD | F18: 19 RSD | G18: 21 RSD | H18: 13 RSD | I18: 9 RSD | J18: 7 RSD | K18: 13 RSD | L18: 3 RSD | M18: 6 RSD | N18: 10 RSD | O18: 13 RSD | P18: =SUM(tblExpenses[[#This Row],[Jan]:[Dec]]) -> 119 RSD | Q18: 6% | R18: =tblExpenses[[#This Row],[Jan]]/tblExpenses[[#Totals],[Jan]] -> 1% | S18: =tblExpenses[[#This Row],[Feb]]/tblExpenses[[#Totals],[Feb]] -> 1% | T18: =tblExpenses[[#This Row],[Mart]]/tblExpenses[[#Totals],[Mart]] -> 8% | U18: =tblExpenses[[#This Row],[Apr]]/tblExpenses[[#Totals],[Apr]] -> 8% | V18: =tblExpenses[[#This Row],[Maj]]/tblExpenses[[#Totals],[Maj]] -> 5% | W18: =tblExpenses[[#This Row],[Jun]]/tblExpenses[[#Totals],[Jun]] -> 3% | X18: =tblExpenses[[#This Row],[Jul]]/tblExpenses[[#Totals],[Jul]] -> 3% | Y18: =tblExpenses[[#This Row],[Avg]]/tblExpenses[[#Totals],[Avg]] -> 6% | Z18: =tblExpenses[[#This Row],[Sep]]/tblExpenses[[#Totals],[Sep]] -> 1% | AA18: =tblExpenses[[#This Row],[Okt]]/tblExpenses[[#Totals],[Okt]] -> 2% | AB18: =tblExpenses[[#This Row],[Nov]]/tblExpenses[[#Totals],[Nov]] -> 3% | AC18: =tblExpenses[[#This Row],[Dec]]/tblExpenses[[#Totals],[Dec]] -> 6% | AD18: =tblExpenses[[#This Row],[Godišnje]]/tblExpenses[[#Totals],[Godišnje]] -> 4%
B19: Ispravka | D19: 8 RSD | E19: 7 RSD | F19: 6 RSD | G19: 7 RSD | H19: 7 RSD | I19: 6 RSD | J19: 15 RSD | K19: 23 RSD | L19: 21 RSD | M19: 16 RSD | N19: 19 RSD | O19: 7 RSD | P19: =SUM(tblExpenses[[#This Row],[Jan]:[Dec]]) -> 142 RSD | Q19: 1% | R19: =tblExpenses[[#This Row],[Jan]]/tblExpenses[[#Totals],[Jan]] -> 3% | S19: =tblExpenses[[#This Row],[Feb]]/tblExpenses[[#Totals],[Feb]] -> 3% | T19: =tblExpenses[[#This Row],[Mart]]/tblExpenses[[#Totals],[Mart]] -> 2% | U19: =tblExpenses[[#This Row],[Apr]]/tblExpenses[[#Totals],[Apr]] -> 3% | V19: =tblExpenses[[#This Row],[Maj]]/tblExpenses[[#Totals],[Maj]] -> 3% | W19: =tblExpenses[[#This Row],[Jun]]/tblExpenses[[#Totals],[Jun]] -> 2% | X19: =tblExpenses[[#This Row],[Jul]]/tblExpenses[[#Totals],[Jul]] -> 6% | Y19: =tblExpenses[[#This Row],[Avg]]/tblExpenses[[#Totals],[Avg]] -> 10% | Z19: =tblExpenses[[#This Row],[Sep]]/tblExpenses[[#Totals],[Sep]] -> 9% | AA19: =tblExpenses[[#This Row],[Okt]]/tblExpenses[[#Totals],[Okt]] -> 6% | AB19: =tblExpenses[[#This Row],[Nov]]/tblExpenses[[#Totals],[Nov]] -> 6% | AC19: =tblExpenses[[#This Row],[Dec]]/tblExpenses[[#Totals],[Dec]] -> 3% | AD19: =tblExpenses[[#This Row],[Godišnje]]/tblExpenses[[#Totals],[Godišnje]] -> 5%
B20: Ostali troškovi (navedite) | D20: 14 RSD | E20: 4 RSD | F20: 24 RSD | G20: 6 RSD | H20: 20 RSD | I20: 14 RSD | J20: 21 RSD | K20: 20 RSD | L20: 22 RSD | M20: 3 RSD | N20: 14 RSD | O20: 6 RSD | P20: =SUM(tblExpenses[[#This Row],[Jan]:[Dec]]) -> 168 RSD | Q20: 1% | R20: =tblExpenses[[#This Row],[Jan]]/tblExpenses[[#Totals],[Jan]] -> 6% | S20: =tblExpenses[[#This Row],[Feb]]/tblExpenses[[#Totals],[Feb]] -> 2% | T20: =tblExpenses[[#This Row],[Mart]]/tblExpenses[[#Totals],[Mart]] -> 10% | U20: =tblExpenses[[#This Row],[Apr]]/tblExpenses[[#Totals],[Apr]] -> 2% | V20: =tblExpenses[[#This Row],[Maj]]/tblExpenses[[#Totals],[Maj]] -> 8% | W20: =tblExpenses[[#This Row],[Jun]]/tblExpenses[[#Totals],[Jun]] -> 5% | X20: =tblExpenses[[#This Row],[Jul]]/tblExpenses[[#Totals],[Jul]] -> 8% | Y20: =tblExpenses[[#This Row],[Avg]]/tblExpenses[[#Totals],[Avg]] -> 9% | Z20: =tblExpenses[[#This Row],[Sep]]/tblExpenses[[#Totals],[Sep]] -> 10% | AA20: =tblExpenses[[#This Row],[Okt]]/tblExpenses[[#Totals],[Okt]] -> 1% | AB20: =tblExpenses[[#This Row],[Nov]]/tblExpenses[[#Totals],[Nov]] -> 5% | AC20: =tblExpenses[[#This Row],[Dec]]/tblExpenses[[#Totals],[Dec]] -> 3% | AD20: =tblExpenses[[#This Row],[Godišnje]]/tblExpenses[[#Totals],[Godišnje]] -> 6%
B21: Ostali troškovi (navedite) | D21: 14 RSD | E21: 7 RSD | F21: 24 RSD | G21: 10 RSD | H21: 7 RSD | I21: 24 RSD | J21: 2 RSD | K21: 11 RSD | L21: 21 RSD | M21: 19 RSD | N21: 19 RSD | O21: 20 RSD | P21: =SUM(tblExpenses[[#This Row],[Jan]:[Dec]]) -> 178 RSD | Q21: 1% | R21: =tblExpenses[[#This Row],[Jan]]/tblExpenses[[#Totals],[Jan]] -> 6% | S21: =tblExpenses[[#This Row],[Feb]]/tblExpenses[[#Totals],[Feb]] -> 3% | T21: =tblExpenses[[#This Row],[Mart]]/tblExpenses[[#Totals],[Mart]] -> 10% | U21: =tblExpenses[[#This Row],[Apr]]/tblExpenses[[#Totals],[Apr]] -> 4% | V21: =tblExpenses[[#This Row],[Maj]]/tblExpenses[[#Totals],[Maj]] -> 3% | W21: =tblExpenses[[#This Row],[Jun]]/tblExpenses[[#Totals],[Jun]] -> 9% | X21: =tblExpenses[[#This Row],[Jul]]/tblExpenses[[#Totals],[Jul]] -> 1% | Y21: =tblExpenses[[#This Row],[Avg]]/tblExpenses[[#Totals],[Avg]] -> 5% | Z21: =tblExpenses[[#This Row],[Sep]]/tblExpenses[[#Totals],[Sep]] -> 9% | AA21: =tblExpenses[[#This Row],[Okt]]/tblExpenses[[#Totals],[Okt]] -> 7% | AB21: =tblExpenses[[#This Row],[Nov]]/tblExpenses[[#Totals],[Nov]] -> 6% | AC21: =tblExpenses[[#This Row],[Dec]]/tblExpenses[[#Totals],[Dec]] -> 9% | AD21: =tblExpenses[[#This Row],[Godišnje]]/tblExpenses[[#Totals],[Godišnje]] -> 6%
B22: Ostali troškovi (navedite) | D22: 11 RSD | E22: 8 RSD | F22: 25 RSD | G22: 11 RSD | H22: 9 RSD | I22: 24 RSD | J22: 13 RSD | K22: 14 RSD | L22: 19 RSD | M22: 24 RSD | N22: 15 RSD | O22: 7 RSD | P22: =SUM(tblExpenses[[#This Row],[Jan]:[Dec]]) -> 180 RSD | Q22: 1% | R22: =tblExpenses[[#This Row],[Jan]]/tblExpenses[[#Totals],[Jan]] -> 5% | S22: =tblExpenses[[#This Row],[Feb]]/tblExpenses[[#Totals],[Feb]] -> 4% | T22: =tblExpenses[[#This Row],[Mart]]/tblExpenses[[#Totals],[Mart]] -> 10% | U22: =tblExpenses[[#This Row],[Apr]]/tblExpenses[[#Totals],[Apr]] -> 4% | V22: =tblExpenses[[#This Row],[Maj]]/tblExpenses[[#Totals],[Maj]] -> 4% | W22: =tblExpenses[[#This Row],[Jun]]/tblExpenses[[#Totals],[Jun]] -> 9% | X22: =tblExpenses[[#This Row],[Jul]]/tblExpenses[[#Totals],[Jul]] -> 5% | Y22: =tblExpenses[[#This Row],[Avg]]/tblExpenses[[#Totals],[Avg]] -> 6% | Z22: =tblExpenses[[#This Row],[Sep]]/tblExpenses[[#Totals],[Sep]] -> 8% | AA22: =tblExpenses[[#This Row],[Okt]]/tblExpenses[[#Totals],[Okt]] -> 9% | AB22: =tblExpenses[[#This Row],[Nov]]/tblExpenses[[#Totals],[Nov]] -> 5% | AC22: =tblExpenses[[#This Row],[Dec]]/tblExpenses[[#Totals],[Dec]] -> 3% | AD22: =tblExpenses[[#This Row],[Godišnje]]/tblExpenses[[#Totals],[Godišnje]] -> 6%
B23: Razno (neodređeno) | D23: 8 RSD | E23: 20 RSD | F23: 11 RSD | G23: 11 RSD | H23: 11 RSD | I23: 20 RSD | J23: 12 RSD | K23: 16 RSD | L23: 5 RSD | M23: 7 RSD | N23: 21 RSD | O23: 3 RSD | P23: =SUM(tblExpenses[[#This Row],[Jan]:[Dec]]) -> 145 RSD | Q23: 2% | R23: =tblExpenses[[#This Row],[Jan]]/tblExpenses[[#Totals],[Jan]] -> 3% | S23: =tblExpenses[[#This Row],[Feb]]/tblExpenses[[#Totals],[Feb]] -> 10% | T23: =tblExpenses[[#This Row],[Mart]]/tblExpenses[[#Totals],[Mart]] -> 4% | U23: =tblExpenses[[#This Row],[Apr]]/tblExpenses[[#Totals],[Apr]] -> 4% | V23: =tblExpenses[[#This Row],[Maj]]/tblExpenses[[#Totals],[Maj]] -> 4% | W23: =tblExpenses[[#This Row],[Jun]]/tblExpenses[[#Totals],[Jun]] -> 7% | X23: =tblExpenses[[#This Row],[Jul]]/tblExpenses[[#Totals],[Jul]] -> 5% | Y23: =tblExpenses[[#This Row],[Avg]]/tblExpenses[[#Totals],[Avg]] -> 7% | Z23: =tblExpenses[[#This Row],[Sep]]/tblExpenses[[#Totals],[Sep]] -> 2% | AA23: =tblExpenses[[#This Row],[Okt]]/tblExpenses[[#Totals],[Okt]] -> 3% | AB23: =tblExpenses[[#This Row],[Nov]]/tblExpenses[[#Totals],[Nov]] -> 7% | AC23: =tblExpenses[[#This Row],[Dec]]/tblExpenses[[#Totals],[Dec]] -> 1% | AD23: =tblExpenses[[#This Row],[Godišnje]]/tblExpenses[[#Totals],[Godišnje]] -> 5%
B24: UKUPNI TROŠKOVI | D24: =SUBTOTAL(109,tblExpenses[Jan]) -> 236 RSD | E24: =SUBTOTAL(109,tblExpenses[Feb]) -> 205 RSD | F24: =SUBTOTAL(109,tblExpenses[Mart]) -> 249 RSD | G24: =SUBTOTAL(109,tblExpenses[Apr]) -> 261 RSD | H24: =SUBTOTAL(109,tblExpenses[Maj]) -> 257 RSD | I24: =SUBTOTAL(109,tblExpenses[Jun]) -> 274 RSD | J24: =SUBTOTAL(109,tblExpenses[Jul]) -> 266 RSD | K24: =SUBTOTAL(109,tblExpenses[Avg]) -> 235 RSD | L24: =SUBTOTAL(109,tblExpenses[Sep]) -> 230 RSD | M24: =SUBTOTAL(109,tblExpenses[Okt]) -> 259 RSD | N24: =SUBTOTAL(109,tblExpenses[Nov]) -> 296 RSD | O24: =SUBTOTAL(109,tblExpenses[Dec]) -> 231 RSD | P24: =SUBTOTAL(109,tblExpenses[Godišnje]) -> 2,999 RSD | Q24: =SUBTOTAL(109,tblExpenses[Indeks %]) -> 100% | R24: =SUBTOTAL(109,tblExpenses[Jan %]) -> 100% | S24: =SUBTOTAL(109,tblExpenses[Feb %]) -> 100% | T24: =SUBTOTAL(109,tblExpenses[Mar %]) -> 100% | U24: =SUBTOTAL(109,tblExpenses[Apr %]) -> 100% | V24: =SUBTOTAL(109,tblExpenses[Maj %]) -> 100% | W24: =SUBTOTAL(109,tblExpenses[Jun %]) -> 100% | X24: =SUBTOTAL(109,tblExpenses[Jul %]) -> 100% | Y24: =SUBTOTAL(109,tblExpenses[Avg %]) -> 100% | Z24: =SUBTOTAL(109,tblExpenses[Sep %]) -> 100% | AA24: =SUBTOTAL(109,tblExpenses[Okt %]) -> 100% | AB24: =SUBTOTAL(109,tblExpenses[Nov %]) -> 100% | AC24: =SUBTOTAL(109,tblExpenses[Dec %]) -> 100% | AD24: =SUBTOTAL(109,tblExpenses[Godina %]) -> 100%
B26: Neto profit | D26: ='Trošak prodaje'!$D$14-tblExpenses[[#Totals],[Jan]] -> 123 RSD | E26: ='Trošak prodaje'!E14-tblExpenses[[#Totals],[Feb]] -> 175 RSD | F26: ='Trošak prodaje'!F14-tblExpenses[[#Totals],[Mart]] -> 256 RSD | G26: ='Trošak prodaje'!G14-tblExpenses[[#Totals],[Apr]] -> 109 RSD | H26: ='Trošak prodaje'!H14-tblExpenses[[#Totals],[Maj]] -> 156 RSD | I26: ='Trošak prodaje'!I14-tblExpenses[[#Totals],[Jun]] -> -8 RSD | J26: ='Trošak prodaje'!J14-tblExpenses[[#Totals],[Jul]] -> 32 RSD | K26: ='Trošak prodaje'!K14-tblExpenses[[#Totals],[Avg]] -> 214 RSD | L26: ='Trošak prodaje'!L14-tblExpenses[[#Totals],[Sep]] -> 100 RSD | M26: ='Trošak prodaje'!M14-tblExpenses[[#Totals],[Okt]] -> 148 RSD | N26: ='Trošak prodaje'!N14-tblExpenses[[#Totals],[Nov]] -> 179 RSD | O26: ='Trošak prodaje'!O14-tblExpenses[[#Totals],[Dec]] -> 359 RSD | P26: =SUM(D26:O26) -> 1,843 RSD | R26: =D26/$P$26 -> 7% | S26: =E26/$P$26 -> 9% | T26: 14% | U26: 6% | V26: 8% | W26: -0% | X26: 2% | Y26: 12% | Z26: 5% | AA26: 8% | AB26: 10% | AC26: 19% | AD26: 100%
